[Event "Late-Titled-Tuesday-Blitz-March-19-2024"]
[Site "Chess.com"]
[Date "2024.03.19"]
[Round "8"]
[White "masnyszachistaaa"]
[Black "AlexPapasimakopoulos"]
[Result "0-1"]
[WhiteElo "2570"]
[BlackElo "2762"]
[TimeControl "180+1"]
[EndTime "15:26:22 PDT"]
[Termination "AlexPapasimakopoulos won by resignation"]

1. d4 {[%clk 0:03:00.9]} 1... e6 {[%clk 0:02:59.3]} 2. Nf3 {[%clk 0:02:58.5]}
2... d5 {[%clk 0:02:57.9]} 3. c4 {[%clk 0:02:57.4]} 3... a6 {[%clk 0:02:57.8]}
4. cxd5 {[%clk 0:02:55.6]} 4... exd5 {[%clk 0:02:58.7]} 5. Nc3 {[%clk
0:02:55.9]} 5... c6 {[%clk 0:02:59.2]} 6. Bf4 {[%clk 0:02:45.3]} 6... Bd6 {[%clk
0:02:58.8]} 7. e3 {[%clk 0:02:38.9]} 7... Bxf4 {[%clk 0:02:58.5]} 8. exf4 {[%clk
0:02:39.8]} 8... Bg4 {[%clk 0:02:58.8]} 9. Be2 {[%clk 0:02:39.4]} 9... Bxf3
{[%clk 0:02:58.9]} 10. Bxf3 {[%clk 0:02:40.3]} 10... Ne7 {[%clk 0:02:52.2]} 11.
O-O {[%clk 0:02:39.6]} 11... Nd7 {[%clk 0:02:52.2]} 12. Re1 {[%clk 0:02:38.1]}
12... O-O {[%clk 0:02:53]} 13. g3 {[%clk 0:02:37.2]} 13... Nc8 {[%clk 0:02:53]}
14. Qd2 {[%clk 0:02:27.8]} 14... Nd6 {[%clk 0:02:52.9]} 15. Ne2 {[%clk
0:02:21.8]} 15... Qb6 {[%clk 0:02:51.7]} 16. Nc1 {[%clk 0:02:16.5]} 16... Rfe8
{[%clk 0:02:51.2]} 17. Rxe8+ {[%clk 0:02:06.7]} 17... Rxe8 {[%clk 0:02:50.8]}
18. Nb3 {[%clk 0:01:56.4]} 18... Nc4 {[%clk 0:02:44.2]} 19. Qc3 {[%clk
0:01:51.1]} 19... a5 {[%clk 0:02:37.5]} 20. Nd2 {[%clk 0:01:47.6]} 20... Nxd2
{[%clk 0:02:22.2]} 21. Qxd2 {[%clk 0:01:48.5]} 21... Qb4 {[%clk 0:02:20.2]} 22.
Qc3 {[%clk 0:01:37.5]} 22... Nb6 {[%clk 0:02:11]} 23. Qxb4 {[%clk 0:01:11.8]}
23... axb4 {[%clk 0:02:10.8]} 24. Kf1 {[%clk 0:01:12]} 24... Nc4 {[%clk
0:02:08.5]} 25. Be2 {[%clk 0:01:08.9]} 25... Nd2+ {[%clk 0:01:51.7]} 26. Ke1
{[%clk 0:01:07.1]} 26... Nf3+ {[%clk 0:01:51.8]} 27. Kd1 {[%clk 0:01:03.7]}
27... Nxd4 {[%clk 0:01:52.4]} 28. Bd3 {[%clk 0:01:01.4]} 28... Kf8 {[%clk
0:01:49.6]} 29. h4 {[%clk 0:00:44.6]} 29... h6 {[%clk 0:01:48.6]} 30. a3 {[%clk
0:00:40.7]} 30... Ra8 {[%clk 0:01:46.2]} 31. Bc2 {[%clk 0:00:32.9]} 31... bxa3
{[%clk 0:01:36.8]} 32. bxa3 {[%clk 0:00:29.5]} 32... Ke7 {[%clk 0:01:30.2]} 33.
Bd3 {[%clk 0:00:26.3]} 33... b5 {[%clk 0:01:27.8]} 34. Ra2 {[%clk 0:00:22.5]}
34... Kd6 {[%clk 0:01:27.8]} 35. Kd2 {[%clk 0:00:15.3]} 35... c5 {[%clk
0:01:28.2]} 36. Bf1 {[%clk 0:00:11.2]} 36... b4 {[%clk 0:01:26.6]} 37. a4 {[%clk
0:00:08.9]} 37... c4 {[%clk 0:01:27.1]} 38. Kc1 {[%clk 0:00:07.6]} 38... b3
{[%clk 0:01:25.5]} 39. Ra3 {[%clk 0:00:02.8]} 39... Nc2 {[%clk 0:01:24.7]} 0-1

[Event "Late-Titled-Tuesday-Blitz-March-19-2024"]
[Site "Chess.com"]
[Date "2024.03.19"]
[Round "8"]
[White "Kumi29"]
[Black "rodp92"]
[Result "0-1"]
[WhiteElo "2569"]
[BlackElo "2501"]
[TimeControl "180+1"]
[EndTime "15:26:23 PDT"]
[Termination "rodp92 won by checkmate"]

1. d4 {[%clk 0:03:00.9]} 1... g6 {[%clk 0:02:59.8]} 2. h4 {[%clk 0:03:00.2]}
2... h5 {[%clk 0:02:59.6]} 3. g4 {[%clk 0:02:59]} 3... hxg4 {[%clk 0:02:55.2]}
4. e4 {[%clk 0:02:59.3]} 4... d5 {[%clk 0:02:52.5]} 5. Nc3 {[%clk 0:02:59.3]}
5... dxe4 {[%clk 0:02:51]} 6. Nxe4 {[%clk 0:02:59.2]} 6... Nf6 {[%clk
0:02:51.5]} 7. Ng5 {[%clk 0:02:52.8]} 7... Bf5 {[%clk 0:02:44.3]} 8. Bc4 {[%clk
0:02:46.1]} 8... e6 {[%clk 0:02:41.7]} 9. c3 {[%clk 0:02:45.8]} 9... c6 {[%clk
0:02:40.4]} 10. Ne2 {[%clk 0:02:38.2]} 10... Nbd7 {[%clk 0:02:37.3]} 11. Nf4
{[%clk 0:02:34.9]} 11... Bd6 {[%clk 0:02:31.6]} 12. Qb3 {[%clk 0:02:27.5]} 12...
Qb6 {[%clk 0:02:25]} 13. Nxf7 {[%clk 0:02:10.5]} 13... Bxf4 {[%clk 0:02:17.8]}
14. Nxh8 {[%clk 0:02:07.9]} 14... Bxc1 {[%clk 0:02:11.3]} 15. Bxe6 {[%clk
0:01:48.9]} 15... Bxb2 {[%clk 0:01:52.5]} 16. Bxd7+ {[%clk 0:01:40.9]} 16...
Nxd7 {[%clk 0:01:33.9]} 17. Qg8+ {[%clk 0:01:38.5]} 17... Ke7 {[%clk 0:01:34.3]}
18. Qxa8 {[%clk 0:01:11.8]} 18... Bxc3+ {[%clk 0:01:30.8]} 19. Kf1 {[%clk
0:01:11.1]} 19... Bxa1 {[%clk 0:01:14.2]} 20. Kg2 {[%clk 0:00:48.8]} 20... Be4+
{[%clk 0:01:09.2]} 21. Kg3 {[%clk 0:00:49.2]} 21... Qc7+ {[%clk 0:00:56.3]} 22.
Kxg4 {[%clk 0:00:46.7]} 22... Nf6+ {[%clk 0:00:50.3]} 23. Kg5 {[%clk 0:00:44.5]}
23... Bxd4 {[%clk 0:00:27.8]} 24. Re1 {[%clk 0:00:40]} 24... Qe5+ {[%clk
0:00:26.2]} 25. Kh6 {[%clk 0:00:36.7]} 25... Ng4+ {[%clk 0:00:23.8]} 26. Kh7
{[%clk 0:00:33.3]} 26... Qg7# {[%clk 0:00:24]} 0-1

[Event "Late-Titled-Tuesday-Blitz-March-19-2024"]
[Site "Chess.com"]
[Date "2024.03.19"]
[Round "8"]
[White "HanSchut"]
[Black "LeninGuerra"]
[Result "0-1"]
[WhiteElo "2315"]
[BlackElo "2673"]
[TimeControl "180+1"]
[EndTime "15:26:25 PDT"]
[Termination "LeninGuerra won by resignation"]

1. e4 {[%clk 0:02:59.6]} 1... c5 {[%clk 0:02:41.8]} 2. Nf3 {[%clk 0:02:58.9]}
2... e6 {[%clk 0:02:41]} 3. c4 {[%clk 0:02:58.8]} 3... b6 {[%clk 0:02:40.9]} 4.
Nc3 {[%clk 0:02:57.5]} 4... Bb7 {[%clk 0:02:40.9]} 5. d3 {[%clk 0:02:58]} 5...
d6 {[%clk 0:02:41]} 6. d4 {[%clk 0:02:56.6]} 6... cxd4 {[%clk 0:02:39.9]} 7.
Nxd4 {[%clk 0:02:57.5]} 7... a6 {[%clk 0:02:40]} 8. Be3 {[%clk 0:02:57.8]} 8...
Nd7 {[%clk 0:02:40.2]} 9. f3 {[%clk 0:02:58.3]} 9... Ngf6 {[%clk 0:02:40.5]} 10.
Rc1 {[%clk 0:02:58.4]} 10... Be7 {[%clk 0:02:40.8]} 11. Qd2 {[%clk 0:02:58.7]}
11... O-O {[%clk 0:02:41.2]} 12. Be2 {[%clk 0:02:59.4]} 12... Rc8 {[%clk
0:02:41.5]} 13. O-O {[%clk 0:02:58.9]} 13... Qc7 {[%clk 0:02:42]} 14. Rfd1
{[%clk 0:02:58.3]} 14... Qb8 {[%clk 0:02:42.3]} 15. Bf1 {[%clk 0:02:58.3]} 15...
Bd8 {[%clk 0:02:42.4]} 16. Kh1 {[%clk 0:02:58.7]} 16... Bc7 {[%clk 0:02:42.7]}
17. Bg1 {[%clk 0:02:58.9]} 17... Rfd8 {[%clk 0:02:42.3]} 18. Qg5 {[%clk
0:02:54.7]} 18... h6 {[%clk 0:02:42]} 19. Qh4 {[%clk 0:02:51.6]} 19... Ne5
{[%clk 0:02:39.3]} 20. b3 {[%clk 0:02:51.4]} 20... Ng6 {[%clk 0:02:38.9]} 21.
Qf2 {[%clk 0:02:51.2]} 21... d5 {[%clk 0:02:17.1]} 22. cxd5 {[%clk 0:02:51.1]}
22... exd5 {[%clk 0:02:17.8]} 23. exd5 {[%clk 0:02:51.4]} 23... Nxd5 {[%clk
0:02:18.7]} 24. Nxd5 {[%clk 0:02:51.3]} 24... Rxd5 {[%clk 0:02:19.6]} 25. Re1
{[%clk 0:02:28.8]} 25... Rh5 {[%clk 0:02:16.5]} 26. h3 {[%clk 0:02:18.9]} 26...
Rd8 {[%clk 0:01:57.2]} 27. Red1 {[%clk 0:02:06.4]} 27... Bg3 {[%clk 0:01:53.7]}
28. Qc2 {[%clk 0:01:54.7]} 28... Nf4 {[%clk 0:01:42.8]} 29. Nc6 {[%clk
0:01:50.4]} 29... Rxd1 {[%clk 0:01:09.1]} 30. Nxb8 {[%clk 0:01:30]} 30... Rxh3+
{[%clk 0:01:00.9]} 31. gxh3 {[%clk 0:01:19.8]} 31... Bxf3+ {[%clk 0:00:58.9]}
32. Bg2 {[%clk 0:01:19.6]} 32... Rxc1 {[%clk 0:00:55.9]} 33. Qb2 {[%clk
0:00:30]} 33... Bxg2+ {[%clk 0:00:48.9]} 0-1

[Event "Late-Titled-Tuesday-Blitz-March-19-2024"]
[Site "Chess.com"]
[Date "2024.03.19"]
[Round "8"]
[White "jefferyx"]
[Black "ChristopherYoo"]
[Result "1-0"]
[WhiteElo "3104"]
[BlackElo "2959"]
[TimeControl "180+1"]
[EndTime "15:26:37 PDT"]
[Termination "jefferyx won on time"]

1. d4 {[%clk 0:03:00.9]} 1... Nf6 {[%clk 0:02:59]} 2. c4 {[%clk 0:03:01.2]} 2...
e6 {[%clk 0:02:59.2]} 3. Nc3 {[%clk 0:03:01.7]} 3... Bb4 {[%clk 0:02:58.7]} 4.
Nf3 {[%clk 0:03:02.2]} 4... d5 {[%clk 0:02:38.2]} 5. Qa4+ {[%clk 0:03:02.1]}
5... Nc6 {[%clk 0:02:37.8]} 6. e3 {[%clk 0:03:02.8]} 6... O-O {[%clk 0:02:37]}
7. Bd2 {[%clk 0:03:03.5]} 7... Re8 {[%clk 0:02:35.5]} 8. a3 {[%clk 0:03:02.7]}
8... Bf8 {[%clk 0:02:35]} 9. Rd1 {[%clk 0:03:02.1]} 9... e5 {[%clk 0:02:19.5]}
10. dxe5 {[%clk 0:02:50.1]} 10... Nxe5 {[%clk 0:02:19.2]} 11. cxd5 {[%clk
0:02:50.6]} 11... Nxf3+ {[%clk 0:02:06.5]} 12. gxf3 {[%clk 0:02:51.5]} 12... Bd7
{[%clk 0:01:27.8]} 13. Bb5 {[%clk 0:02:50.9]} 13... Bxb5 {[%clk 0:01:25.1]} 14.
Qxb5 {[%clk 0:02:51.8]} 14... c6 {[%clk 0:01:22.8]} 15. dxc6 {[%clk 0:02:46.5]}
15... bxc6 {[%clk 0:01:23]} 16. Qxc6 {[%clk 0:02:46.8]} 16... Rb8 {[%clk
0:01:15.9]} 17. Bc1 {[%clk 0:02:44.6]} 17... Qa5 {[%clk 0:01:12.9]} 18. Rg1
{[%clk 0:02:40.6]} 18... Qf5 {[%clk 0:01:04.3]} 19. Ke2 {[%clk 0:01:30.6]} 19...
Nh5 {[%clk 0:00:49.2]} 20. Ne4 {[%clk 0:01:30.2]} 20... Rec8 {[%clk 0:00:37.3]}
21. Rd5 {[%clk 0:01:18.1]} 21... Qxe4 {[%clk 0:00:19.1]} 22. fxe4 {[%clk
0:01:19]} 22... Rxc6 {[%clk 0:00:18.4]} 23. Rxh5 {[%clk 0:01:19.6]} 23... Rc2+
{[%clk 0:00:19.1]} 24. Kf3 {[%clk 0:01:18]} 24... g6 {[%clk 0:00:19.2]} 25. Rd5
{[%clk 0:01:16.4]} 25... Be7 {[%clk 0:00:08.4]} 26. b4 {[%clk 0:01:09]} 26...
Rbc8 {[%clk 0:00:04.8]} 27. Bd2 {[%clk 0:01:06.8]} 27... Ra2 {[%clk 0:00:05.4]}
28. Rd3 {[%clk 0:01:01.2]} 28... Rcc2 {[%clk 0:00:04.1]} 29. Rd1 {[%clk
0:01:01.7]} 29... Bf6 {[%clk 0:00:03.7]} 30. Be1 {[%clk 0:01:00.5]} 30... Kg7
{[%clk 0:00:03]} 31. R1d2 {[%clk 0:00:58.3]} 31... Rxd2 {[%clk 0:00:02.8]} 32.
Bxd2 {[%clk 0:00:58.3]} 32... Be5 {[%clk 0:00:01.8]} 33. Bc3 {[%clk 0:00:58.1]}
33... Bxc3 {[%clk 0:00:01.8]} 34. Rxc3 {[%clk 0:00:59]} 34... Kf6 {[%clk
0:00:02]} 35. Rc6+ {[%clk 0:00:58.7]} 35... Kg7 {[%clk 0:00:02.5]} 36. Ra6
{[%clk 0:00:59]} 1-0

[Event "Late-Titled-Tuesday-Blitz-March-19-2024"]
[Site "Chess.com"]
[Date "2024.03.19"]
[Round "8"]
[White "gorgeous1083"]
[Black "rikchessmx"]
[Result "1/2-1/2"]
[WhiteElo "2064"]
[BlackElo "2282"]
[TimeControl "180+1"]
[EndTime "15:26:44 PDT"]
[Termination "Game drawn by repetition"]

1. d4 {[%clk 0:03:00.9]} 1... Nf6 {[%clk 0:02:47.9]} 2. c4 {[%clk 0:03:00.7]}
2... g6 {[%clk 0:02:48.3]} 3. Nc3 {[%clk 0:03:00.1]} 3... d5 {[%clk 0:02:49.2]}
4. cxd5 {[%clk 0:02:59.9]} 4... Nxd5 {[%clk 0:02:50.1]} 5. e4 {[%clk 0:03:00.5]}
5... Nxc3 {[%clk 0:02:50.3]} 6. bxc3 {[%clk 0:03:01.4]} 6... Bg7 {[%clk
0:02:50.8]} 7. h3 {[%clk 0:03:01.5]} 7... O-O {[%clk 0:02:51.4]} 8. Nf3 {[%clk
0:03:01.8]} 8... c5 {[%clk 0:02:52.2]} 9. Be3 {[%clk 0:03:02]} 9... Qa5 {[%clk
0:02:52.2]} 10. Bd2 {[%clk 0:02:52.4]} 10... Nc6 {[%clk 0:02:50]} 11. Be2 {[%clk
0:02:50.4]} 11... Rd8 {[%clk 0:02:49.4]} 12. O-O {[%clk 0:02:34.1]} 12... Qc7
{[%clk 0:02:47.9]} 13. d5 {[%clk 0:02:30]} 13... Ne5 {[%clk 0:02:47.7]} 14. Rc1
{[%clk 0:02:26.8]} 14... Nxf3+ {[%clk 0:02:32.8]} 15. Bxf3 {[%clk 0:02:26.4]}
15... b6 {[%clk 0:02:30.2]} 16. Re1 {[%clk 0:02:20.8]} 16... Bb7 {[%clk
0:02:26.4]} 17. Bg5 {[%clk 0:02:13.7]} 17... c4 {[%clk 0:02:23.9]} 18. Qd2
{[%clk 0:02:03.7]} 18... Rac8 {[%clk 0:02:09.2]} 19. Bh6 {[%clk 0:01:55.2]}
19... Bh8 {[%clk 0:02:07.4]} 20. Bf4 {[%clk 0:01:53.5]} 20... Be5 {[%clk
0:02:02.3]} 21. Bxe5 {[%clk 0:01:48.6]} 21... Qxe5 {[%clk 0:02:01.7]} 22. Qd4
{[%clk 0:01:33.9]} 22... Qxd4 {[%clk 0:01:55.3]} 23. cxd4 {[%clk 0:01:33.8]}
23... e6 {[%clk 0:01:51.8]} 24. dxe6 {[%clk 0:01:30.7]} 24... fxe6 {[%clk
0:01:51.4]} 25. Red1 {[%clk 0:01:26.7]} 25... b5 {[%clk 0:01:50.2]} 26. a3
{[%clk 0:01:21.2]} 26... a5 {[%clk 0:01:44.1]} 27. Bg4 {[%clk 0:01:15.6]} 27...
Kf7 {[%clk 0:01:43]} 28. d5 {[%clk 0:01:14.9]} 28... exd5 {[%clk 0:01:37.4]} 29.
Bxc8 {[%clk 0:01:09.6]} 29... Rxc8 {[%clk 0:01:35.4]} 30. exd5 {[%clk
0:01:08.3]} 30... Rd8 {[%clk 0:01:24.9]} 31. Rb1 {[%clk 0:01:07.9]} 31... Ba6
{[%clk 0:01:18.5]} 32. f4 {[%clk 0:00:55.8]} 32... Ke7 {[%clk 0:01:18.3]} 33.
Kf2 {[%clk 0:00:55.6]} 33... Kd6 {[%clk 0:01:17.8]} 34. Ke3 {[%clk 0:00:51.8]}
34... Kc5 {[%clk 0:01:16.8]} 35. Ke4 {[%clk 0:00:43.6]} 35... b4 {[%clk
0:01:15.1]} 36. axb4+ {[%clk 0:00:42.1]} 36... axb4 {[%clk 0:01:14.6]} 37. d6
{[%clk 0:00:34.3]} 37... c3 {[%clk 0:01:10.6]} 38. Rd5+ {[%clk 0:00:29.7]} 38...
Kc4 {[%clk 0:01:06.7]} 39. Rd4+ {[%clk 0:00:29.8]} 39... Kc5 {[%clk 0:01:04.7]}
40. Rd5+ {[%clk 0:00:14.6]} 40... Kc4 {[%clk 0:01:03]} 41. Rd4+ {[%clk
0:00:14.7]} 41... Kc5 {[%clk 0:01:03.2]} 42. Rd5+ {[%clk 0:00:08.6]} 1/2-1/2

[Event "Late-Titled-Tuesday-Blitz-March-19-2024"]
[Site "Chess.com"]
[Date "2024.03.19"]
[Round "8"]
[White "DanielNaroditsky"]
[Black "xxysoul6"]
[Result "1/2-1/2"]
[WhiteElo "3178"]
[BlackElo "2986"]
[TimeControl "180+1"]
[EndTime "15:26:48 PDT"]
[Termination "Game drawn by agreement"]

1. e4 {[%clk 0:03:00.9]} 1... c5 {[%clk 0:03:00.5]} 2. c3 {[%clk 0:03:01.3]}
2... Nf6 {[%clk 0:02:56.9]} 3. e5 {[%clk 0:03:01.7]} 3... Nd5 {[%clk 0:02:57.5]}
4. Nf3 {[%clk 0:03:02.6]} 4... Nc6 {[%clk 0:02:57.4]} 5. Bc4 {[%clk 0:03:02.6]}
5... Nb6 {[%clk 0:02:55.7]} 6. Bb3 {[%clk 0:03:03.1]} 6... d5 {[%clk 0:02:40.1]}
7. exd6 {[%clk 0:03:04]} 7... Qxd6 {[%clk 0:02:40.5]} 8. O-O {[%clk 0:03:04.1]}
8... c4 {[%clk 0:02:38.6]} 9. Bc2 {[%clk 0:03:04.5]} 9... Bg4 {[%clk 0:02:35.9]}
10. Re1 {[%clk 0:03:04.9]} 10... e6 {[%clk 0:02:34.9]} 11. h3 {[%clk 0:02:40.5]}
11... Bh5 {[%clk 0:02:33.7]} 12. Na3 {[%clk 0:02:40.9]} 12... Qc7 {[%clk
0:02:17.3]} 13. b3 {[%clk 0:02:32.2]} 13... cxb3 {[%clk 0:02:17.5]} 14. axb3
{[%clk 0:02:33.1]} 14... Be7 {[%clk 0:02:17.5]} 15. d4 {[%clk 0:02:18.9]} 15...
O-O {[%clk 0:02:13]} 16. Nc4 {[%clk 0:01:57]} 16... Bg6 {[%clk 0:01:57.1]} 17.
Bxg6 {[%clk 0:01:52.7]} 17... hxg6 {[%clk 0:01:58]} 18. Nxb6 {[%clk 0:01:38.4]}
18... Qxb6 {[%clk 0:01:56.8]} 19. Bg5 {[%clk 0:01:33.6]} 19... Rfd8 {[%clk
0:01:35.8]} 20. Bxe7 {[%clk 0:01:28.4]} 20... Nxe7 {[%clk 0:01:35.5]} 21. Ne5
{[%clk 0:01:18.6]} 21... Nf5 {[%clk 0:01:27.8]} 22. Qf3 {[%clk 0:01:07.4]} 22...
Qxb3 {[%clk 0:01:07.5]} 23. Rab1 {[%clk 0:01:07.1]} 23... Qd5 {[%clk 0:01:07.6]}
24. Qxd5 {[%clk 0:01:05.2]} 24... exd5 {[%clk 0:01:08.5]} 25. Rxb7 {[%clk
0:01:02]} 25... Nd6 {[%clk 0:01:08.8]} 26. Rb3 {[%clk 0:00:57]} 26... a5 {[%clk
0:01:03.8]} 27. Ra1 {[%clk 0:00:57.2]} 27... Rdc8 {[%clk 0:00:58.8]} 28. Nd7
{[%clk 0:00:37.6]} 28... a4 {[%clk 0:00:47.6]} 29. Rba3 {[%clk 0:00:32.8]} 29...
Nb5 {[%clk 0:00:43.2]} 30. Rxa4 {[%clk 0:00:29.2]} 30... Rxa4 {[%clk 0:00:44.1]}
31. Rxa4 {[%clk 0:00:29.9]} 31... Nxc3 {[%clk 0:00:44.4]} 32. Ra5 {[%clk
0:00:22.6]} 32... Ne2+ {[%clk 0:00:41.9]} 33. Kh2 {[%clk 0:00:23.2]} 33... Nxd4
{[%clk 0:00:42.4]} 34. Rxd5 {[%clk 0:00:23.6]} 34... Ne6 {[%clk 0:00:42.9]} 35.
Ne5 {[%clk 0:00:20.9]} 35... Rc5 {[%clk 0:00:41.1]} 36. Rxc5 {[%clk 0:00:18.5]}
36... Nxc5 {[%clk 0:00:42]} 37. f3 {[%clk 0:00:17.2]} 37... g5 {[%clk 0:00:42]}
38. Kg3 {[%clk 0:00:16.4]} 38... f6 {[%clk 0:00:42.5]} 39. Nc4 {[%clk
0:00:16.8]} 39... Kf7 {[%clk 0:00:42.8]} 40. Kf2 {[%clk 0:00:17.3]} 40... Ke6
{[%clk 0:00:42.4]} 1/2-1/2

[Event "Late-Titled-Tuesday-Blitz-March-19-2024"]
[Site "Chess.com"]
[Date "2024.03.19"]
[Round "8"]
[White "Polish_fighter3000"]
[Black "Njal28"]
[Result "1-0"]
[WhiteElo "3146"]
[BlackElo "3054"]
[TimeControl "180+1"]
[EndTime "15:26:53 PDT"]
[Termination "Polish_fighter3000 won by resignation"]

1. e4 {[%clk 0:03:00.9]} 1... e5 {[%clk 0:03:00]} 2. Nf3 {[%clk 0:02:58.8]} 2...
Nc6 {[%clk 0:03:00.7]} 3. Bb5 {[%clk 0:02:58.7]} 3... a6 {[%clk 0:03:01]} 4. Ba4
{[%clk 0:02:58.7]} 4... Nf6 {[%clk 0:03:01.5]} 5. O-O {[%clk 0:02:57.7]} 5...
Be7 {[%clk 0:03:01.2]} 6. d3 {[%clk 0:02:54.5]} 6... b5 {[%clk 0:03:01]} 7. Bb3
{[%clk 0:02:55]} 7... O-O {[%clk 0:03:01.7]} 8. a4 {[%clk 0:02:51.2]} 8... b4
{[%clk 0:03:01.9]} 9. a5 {[%clk 0:02:50.2]} 9... Rb8 {[%clk 0:02:57.9]} 10. Nbd2
{[%clk 0:02:49.2]} 10... Bc5 {[%clk 0:02:57.5]} 11. Nc4 {[%clk 0:02:35.5]} 11...
d6 {[%clk 0:02:54.4]} 12. Bg5 {[%clk 0:02:35.5]} 12... h6 {[%clk 0:02:54]} 13.
Bh4 {[%clk 0:02:35.7]} 13... g5 {[%clk 0:02:50.9]} 14. Bg3 {[%clk 0:02:35.6]}
14... Be6 {[%clk 0:02:38.8]} 15. Ncd2 {[%clk 0:02:32.6]} 15... Ba7 {[%clk
0:02:29.5]} 16. h3 {[%clk 0:02:23.2]} 16... Kh8 {[%clk 0:02:05.5]} 17. Bxe6
{[%clk 0:01:58.2]} 17... fxe6 {[%clk 0:02:05.5]} 18. c3 {[%clk 0:01:58.9]} 18...
Qe8 {[%clk 0:02:01.7]} 19. Nc4 {[%clk 0:01:38.2]} 19... Nh5 {[%clk 0:01:59.5]}
20. Kh1 {[%clk 0:01:35.7]} 20... Rb5 {[%clk 0:01:54.7]} 21. Bh2 {[%clk
0:01:34.3]} 21... Nf4 {[%clk 0:01:48.7]} 22. Bxf4 {[%clk 0:01:30.1]} 22... Rxf4
{[%clk 0:01:27.7]} 23. g3 {[%clk 0:01:30.1]} 23... Rf8 {[%clk 0:01:23.6]} 24.
Kg2 {[%clk 0:01:26.8]} 24... Qg6 {[%clk 0:01:13.4]} 25. h4 {[%clk 0:01:22]}
25... g4 {[%clk 0:01:05.6]} 26. Nh2 {[%clk 0:01:19.2]} 26... h5 {[%clk
0:01:02.4]} 27. f3 {[%clk 0:01:18.1]} 27... bxc3 {[%clk 0:01:02.8]} 28. bxc3
{[%clk 0:01:12.2]} 28... d5 {[%clk 0:01:03.1]} 29. fxg4 {[%clk 0:01:07.2]} 29...
Rxf1 {[%clk 0:00:51.3]} 30. Qxf1 {[%clk 0:01:08.1]} 30... dxc4 {[%clk
0:00:49.9]} 31. Qf8+ {[%clk 0:01:07.2]} 31... Qg8 {[%clk 0:00:16.8]} 32. Qh6+
{[%clk 0:01:07.3]} 32... Qh7 {[%clk 0:00:17.5]} 33. Qf8+ {[%clk 0:01:08]} 33...
Qg8 {[%clk 0:00:17.9]} 34. Qh6+ {[%clk 0:01:08.9]} 34... Qh7 {[%clk 0:00:18.4]}
35. Qxe6 {[%clk 0:01:09.8]} 35... Rb2+ {[%clk 0:00:16.6]} 36. Kh3 {[%clk
0:01:09.1]} 36... Ne7 {[%clk 0:00:10.1]} 37. Rf1 {[%clk 0:01:00.9]} 37... Ng6
{[%clk 0:00:02.3]} 38. Rf7 {[%clk 0:00:54]} 38... Qh6 {[%clk 0:00:01.9]} 39.
Qe8+ {[%clk 0:00:49.7]} 1-0

[Event "Late-Titled-Tuesday-Blitz-March-19-2024"]
[Site "Chess.com"]
[Date "2024.03.19"]
[Round "8"]
[White "Rawnsdale"]
[Black "GlavkonVVS"]
[Result "1-0"]
[WhiteElo "2544"]
[BlackElo "2658"]
[TimeControl "180+1"]
[EndTime "15:26:53 PDT"]
[Termination "Rawnsdale won by resignation"]

1. e4 {[%clk 0:02:58.2]} 1... Nf6 {[%clk 0:03:00.9]} 2. e5 {[%clk 0:02:58.3]}
2... Nd5 {[%clk 0:03:01.1]} 3. d4 {[%clk 0:02:58.2]} 3... d6 {[%clk 0:03:01.3]}
4. c4 {[%clk 0:02:58.6]} 4... Nb6 {[%clk 0:03:01.4]} 5. Nf3 {[%clk 0:02:59.3]}
5... Bg4 {[%clk 0:03:01.1]} 6. exd6 {[%clk 0:02:58.6]} 6... cxd6 {[%clk
0:03:01.4]} 7. Nc3 {[%clk 0:02:53]} 7... e6 {[%clk 0:03:01.6]} 8. Be3 {[%clk
0:02:50.6]} 8... Be7 {[%clk 0:03:02.1]} 9. b3 {[%clk 0:02:50.5]} 9... O-O {[%clk
0:03:02.2]} 10. Be2 {[%clk 0:02:50.7]} 10... d5 {[%clk 0:03:02.6]} 11. c5 {[%clk
0:02:50.4]} 11... Bxf3 {[%clk 0:03:02.8]} 12. Bxf3 {[%clk 0:02:49.8]} 12... Nc8
{[%clk 0:03:03.7]} 13. O-O {[%clk 0:02:50]} 13... Nc6 {[%clk 0:03:04.3]} 14. b4
{[%clk 0:02:49.9]} 14... Bf6 {[%clk 0:03:04.9]} 15. b5 {[%clk 0:02:49.8]} 15...
Na5 {[%clk 0:03:04.9]} 16. Rc1 {[%clk 0:02:22.6]} 16... Ne7 {[%clk 0:03:04.4]}
17. Bf4 {[%clk 0:02:09.6]} 17... Nf5 {[%clk 0:03:02.4]} 18. Ne2 {[%clk
0:02:08.5]} 18... g6 {[%clk 0:02:56]} 19. c6 {[%clk 0:01:45.2]} 19... bxc6
{[%clk 0:02:54.4]} 20. bxc6 {[%clk 0:01:46.1]} 20... Rc8 {[%clk 0:02:54.2]} 21.
c7 {[%clk 0:01:37.3]} 21... Qd7 {[%clk 0:02:47.2]} 22. Rc5 {[%clk 0:01:15.5]}
22... Nc4 {[%clk 0:02:39.7]} 23. Bg4 {[%clk 0:01:05]} 23... Nfd6 {[%clk
0:02:32.3]} 24. Nc3 {[%clk 0:01:04.7]} 24... Rxc7 {[%clk 0:02:25.1]} 25. Nxd5
{[%clk 0:01:03]} 25... exd5 {[%clk 0:02:09.1]} 26. Bxd7 {[%clk 0:01:01.5]} 26...
Rxd7 {[%clk 0:02:09.5]} 27. Qf3 {[%clk 0:00:58.7]} 27... Ne4 {[%clk 0:01:35.1]}
28. Rxc4 {[%clk 0:00:51.2]} 28... dxc4 {[%clk 0:01:35.2]} 29. Qxe4 {[%clk
0:00:51.2]} 29... Rxd4 {[%clk 0:01:35.5]} 30. Qf3 {[%clk 0:00:48.6]} 30... Rd3
{[%clk 0:01:34.2]} 31. Be3 {[%clk 0:00:48]} 31... Bd4 {[%clk 0:01:30.9]} 32. Qc6
{[%clk 0:00:39.1]} 32... Bxe3 {[%clk 0:01:29.4]} 33. fxe3 {[%clk 0:00:33.5]}
33... Rxe3 {[%clk 0:01:29.5]} 34. Qxc4 {[%clk 0:00:33.2]} 34... Re7 {[%clk
0:01:27.4]} 35. h4 {[%clk 0:00:32.8]} 35... h5 {[%clk 0:01:27.1]} 36. Rf6 {[%clk
0:00:27.9]} 36... Kg7 {[%clk 0:01:24]} 37. Qd4 {[%clk 0:00:27.9]} 37... Kh7
{[%clk 0:01:22.2]} 38. Rd6 {[%clk 0:00:27.2]} 38... Rfe8 {[%clk 0:01:21.5]} 39.
Rd7 {[%clk 0:00:26.3]} 39... a5 {[%clk 0:01:15.2]} 40. Rxe7 {[%clk 0:00:20.4]}
40... Rxe7 {[%clk 0:01:15.1]} 41. Qc5 {[%clk 0:00:21.3]} 41... Re1+ {[%clk
0:01:09.2]} 42. Kh2 {[%clk 0:00:21.3]} 42... Re4 {[%clk 0:01:08.4]} 43. Qxa5
{[%clk 0:00:20.3]} 43... Rxh4+ {[%clk 0:01:08.4]} 44. Kg1 {[%clk 0:00:21]} 44...
Rf4 {[%clk 0:01:06.9]} 45. a4 {[%clk 0:00:20.7]} 45... Rf5 {[%clk 0:01:06.1]}
46. Qb6 {[%clk 0:00:19.8]} 46... h4 {[%clk 0:01:02.4]} 47. a5 {[%clk 0:00:19.7]}
47... Rg5 {[%clk 0:01:00.3]} 48. Kh2 {[%clk 0:00:19.6]} 48... Rf5 {[%clk
0:00:56.2]} 49. a6 {[%clk 0:00:19.6]} 1-0